fUSD/lending_fUSD_20260517
["ID","MTS","AMOUNT","RATE_DAILY","PERIOD"]
[422437839,1778947239000,-280.86,0.00012673,2]
[422437832,1778947239000,-280.86,0.00010325,2]
[422437834,1778947239000,-280.86,0.00010995,2]
[422437833,1778947239000,-280.86,0.0001066,2]
[422437838,1778947239000,-280.86,0.00012337,2]
[422437837,1778947239000,-280.86,0.00012002,2]
[422437836,1778947239000,-280.86,0.00011666,2]
[422437835,1778947239000,-280.86,0.00011331,2]
[422437840,1778947240000,-461.242,0.00012683,2]
[422437841,1778947240000,-176.335,0.00012683,2]
[422437842,1778947240000,-215.10063619,0.00012742,2]
[422437844,1778947240000,-2789.75993642,0.00012742,2]
[422437843,1778947240000,-233.20451011,0.00012742,21]
[422437845,1778947240000,-1237.80329442,0.00012745,2]
[422437846,1778947240000,-1200.0,0.00012831,2]
[422437847,1778947240000,-4508.19515923,0.00012832,2]
[422437849,1778947240000,-300.0,0.0001284,2]
[422437850,1778947240000,-300.0,0.0001284,2]
[422437851,1778947240000,-150.0,0.00012841,2]
[422437852,1778947240000,-500.0,0.00012842,2]
[422437854,1778947240000,-5982.5952,0.00012842,2]
[422437848,1778947240000,-354.5822346,0.00012832,2]
[422437855,1778947240000,-2000.0,0.00012842,2]
[422437856,1778947240000,-393.23386738,0.0001285,2]
[422437858,1778947240000,-215.10063619,0.00012859,2]
[422437857,1778947240000,-12580.55539327,0.0001285,2]
[422437860,1778947240000,-4481.95367114,0.00012867,2]
[422437868,1778947240000,-468024.65451251,0.00012942,2]
[422437859,1778947240000,-3310.45815408,0.00012862,2]
[422437862,1778947240000,-499.99,0.00012893,2]
[422437861,1778947240000,-2293.45655986,0.00012871,2]
[422437864,1778947240000,-999.99,0.00012893,2]
[422437863,1778947240000,-15584.98,0.00012893,2]
[422437866,1778947240000,-1924.1,0.00012904,2]
[422437865,1778947240000,-6454.3,0.00012893,2]
[422437867,1778947240000,-354.5822346,0.00012932,2]
[422437853,1778947240000,-1460226.947,0.00012842,2]
[422437871,1778947273000,1200.0,0.00030136,120]
[422437880,1778947401000,275.0,0.0002876,120]
[422437881,1778947433000,808.96,0.000301,120]
[422437882,1778947512000,4914.52185734,0.0002,120]
[422437883,1778947563000,152.0,0.00020754,120]
[422437893,1778947832000,-300.0,0.00011827,2]
[422437888,1778947832000,-886.91,0.00011745,2]
[422437889,1778947832000,-185.95119123,0.00011745,2]
[422437887,1778947832000,-500.0,0.00011745,2]
[422437890,1778947832000,-1852.42,0.00011792,2]
[422437892,1778947832000,-5329.64700774,0.00011819,2]
[422437891,1778947832000,-1200.0,0.00011818,2]
[422437894,1778947832000,-300.0,0.00011827,2]
[422437895,1778947832000,-150.0,0.00011828,2]
[422437899,1778947832000,-497263.23184314,0.00011853,2]
[422437898,1778947832000,-282.14233108,0.00011852,2]
[422437897,1778947832000,-177.29111731,0.00011843,2]
[422437902,1778947832000,-158629.03240785,0.00011853,2]
[422437900,1778947832000,-45003.38748284,0.00011853,2]
[422437901,1778947832000,-76744.31419778,0.00011853,2]
[422437903,1778947832000,-1254.41808677,0.00011853,2]
[422437914,1778947832000,-260.99829995,0.00011853,2]
[422437915,1778947832000,-6764.85518175,0.00011853,2]
[422437896,1778947832000,-81095.39,0.00011829,2]
[422437917,1778947837000,-500.0,0.00011852,2]
[422437962,1778947838000,-14317.05276792,0.00012642,2]
[422437956,1778947838000,-200.0,0.00012238,2]
[422437959,1778947838000,-737.26,0.00012555,2]
[422437957,1778947838000,-282.14233106,0.00012247,2]
[422437958,1778947838000,-737.26,0.00012256,2]
[422437952,1778947838000,-737.26,0.00011957,2]
[422437953,1778947838000,-150.0,0.00012052,2]
[422437954,1778947838000,-150.0,0.00012052,2]
[422437961,1778947838000,-282.14233106,0.00012642,2]
[422437951,1778947838000,-41205.8,0.00011954,2]
[422437950,1778947838000,-163.39,0.00011953,2]
[422437955,1778947838000,-647.19,0.00012238,2]
[422437963,1778947838000,-1721.50377597,0.000127,2]
[422437968,1778947838000,-3668.9793,0.00012742,2]
[422437964,1778947838000,-204.8696,0.00012741,2]
[422437965,1778947838000,-15946.73455842,0.00012742,2]
[422437966,1778947838000,-3972.25058824,0.00012742,2]
[422437978,1778947838000,-2000.0,0.00012842,2]
[422437969,1778947838000,-340.80268506,0.00012769,2]
[422437979,1778947838000,-29034.3725,0.00012842,2]
[422437967,1778947838000,-6801.3071,0.00012742,2]
[422437973,1778947838000,-1434.16444263,0.00012841,2]
[422437977,1778947838000,-23961.8083,0.00012842,2]
[422437971,1778947838000,-2832.39793651,0.00012841,2]
[422437970,1778947838000,-2797.75145207,0.00012841,2]
[422437976,1778947838000,-1026642.3031,0.00012842,2]
[422437947,1778947838000,-2000.0,0.00011897,2]
[422437960,1778947838000,-500.0,0.00012583,2]
[422437948,1778947838000,-1000.0,0.00011952,2]
[422437921,1778947838000,-324.04055469,0.00011852,2]
[422437946,1778947838000,-1714079.76249992,0.00011853,2]
[422437918,1778947838000,-500.0,0.00011852,2]
[422437982,1778947838000,-500.0,0.00012868,2]
[422437920,1778947838000,-505.86265135,0.00011852,2]
[422437919,1778947838000,-500.0,0.00011852,2]
[422437922,1778947838000,-500.0,0.00011852,2]
[422437926,1778947838000,-500.0,0.00011852,2]
[422437925,1778947838000,-500.0,0.00011852,2]
[422437924,1778947838000,-500.0,0.00011852,2]
[422437923,1778947838000,-500.0,0.00011852,2]
[422437928,1778947838000,-500.0,0.00011852,2]
[422437927,1778947838000,-500.0,0.00011852,2]
[422437929,1778947838000,-500.0,0.00011852,2]
[422437930,1778947838000,-500.0,0.00011852,2]
[422437945,1778947838000,-500.0,0.00011852,2]
[422437932,1778947838000,-500.0,0.00011852,2]
[422437931,1778947838000,-500.0,0.00011852,2]
[422437934,1778947838000,-500.0,0.00011852,2]
[422437936,1778947838000,-500.0,0.00011852,2]
[422437937,1778947838000,-500.0,0.00011852,2]
[422437935,1778947838000,-500.0,0.00011852,2]
[422437938,1778947838000,-500.0,0.00011852,2]
[422437939,1778947838000,-500.0,0.00011852,2]
[422437940,1778947838000,-500.0,0.00011852,2]
[422437941,1778947838000,-150.41714586,0.00011852,2]
[422437943,1778947838000,-500.0,0.00011852,2]
[422437942,1778947838000,-500.0,0.00011852,2]
[422437944,1778947838000,-500.0,0.00011852,2]
[422437949,1778947838000,-190.42723672,0.00011953,2]
[422437933,1778947838000,-500.0,0.00011852,2]
[422437980,1778947838000,-737.26,0.00012854,2]
[422437975,1778947838000,-1590.92179969,0.00012841,2]
[422437987,1778947838000,-500.0,0.00012868,2]
[422438017,1778947838000,-5172.65007002,0.00013,2]
[422438018,1778947838000,-1680.0,0.00013,2]
[422438020,1778947838000,-280.86,0.00013008,2]
[422438019,1778947838000,-2061.07,0.00013008,2]
[422438023,1778947838000,-3972.25058818,0.0001305,2]
[422438021,1778947838000,-208.44072055,0.00013011,2]
[422438022,1778947838000,-5411.18239905,0.0001305,2]
[422438026,1778947838000,-737.26,0.00013153,2]
[422438024,1778947838000,-500.0,0.00013142,2]
[422438029,1778947838000,-2000.0,0.00013384,2]
[422438025,1778947838000,-14317.05276788,0.00013144,2]
[422438028,1778947838000,-3972.25058818,0.00013359,2]
[422438031,1778947838000,-500.0,0.00013416,2]
[422438014,1778947838000,-301.0,0.00012986,2]
[422438030,1778947838000,-14317.05276788,0.00013395,2]
[422438032,1778947838000,-699.948262,0.00013427,2]
[422438035,1778947838000,-150.0,0.00013488,2]
[422438036,1778947838000,-150.0,0.00013488,2]
[422438034,1778947838000,-15946.7345584,0.00013461,2]
[422438037,1778947838000,-150.0,0.00013488,2]
[422438039,1778947838000,-217.40567745,0.00013488,2]
[422438038,1778947838000,-150.0,0.00013488,2]
[422438040,1778947838000,-150.0,0.00013488,2]
[422438042,1778947838000,-150.0,0.00013488,2]
[422438041,1778947838000,-150.0,0.00013488,2]
[422438043,1778947838000,-150.0,0.00013488,2]
[422438044,1778947838000,-150.0,0.00013488,2]
[422437986,1778947838000,-500.0,0.00012868,2]
[422438033,1778947838000,-181.139995,0.00013427,2]
[422438012,1778947838000,-1241.80401522,0.00012942,2]
[422438027,1778947838000,-15946.7345584,0.00013222,2]
[422438016,1778947838000,-166.55,0.0001299,2]
[422437983,1778947838000,-230.979569,0.00012868,2]
[422438015,1778947838000,-420.0,0.00012986,2]
[422437984,1778947838000,-500.0,0.00012868,2]
[422437985,1778947838000,-295.23802148,0.00012868,2]
[422437989,1778947838000,-356.95185592,0.00012868,2]
[422437992,1778947838000,-500.0,0.00012868,2]
[422437990,1778947838000,-500.0,0.00012868,2]
[422437988,1778947838000,-500.0,0.00012868,2]
[422437991,1778947838000,-260.0008576,0.00012868,2]
[422437994,1778947838000,-500.0,0.00012868,2]
[422437995,1778947838000,-28524.979717,0.00012869,2]
[422437996,1778947838000,-638948.1827187,0.00012869,2]
[422437998,1778947838000,-1518.0079251,0.00012869,2]
[422437999,1778947838000,-3119.1973808,0.00012869,2]
[422437993,1778947838000,-500.0,0.00012868,2]
[422438000,1778947838000,-360.56781024,0.00012882,2]
[422438007,1778947838000,-14317.05276788,0.00012893,2]
[422437997,1778947838000,-1744.4753882,0.00012869,2]
[422438011,1778947838000,-151.0,0.00012942,2]
[422438009,1778947838000,-155.76592265,0.0001292,2]
[422438013,1778947838000,-15946.7345584,0.00012982,2]
[422438008,1778947838000,-255.0,0.00012904,2]
[422438006,1778947838000,-150.99,0.00012893,2]
[422438010,1778947838000,-252.42,0.0001292,2]
[422438002,1778947838000,-337.48572114,0.00012882,2]
[422438001,1778947838000,-2987.9691141,0.00012882,2]
[422438004,1778947838000,-999.99,0.00012893,2]
[422438003,1778947838000,-6991.09,0.00012893,2]
[422438005,1778947838000,-9999.99,0.00012893,2]
[422438092,1778947839000,-500.0,0.00013698,2]
[422438089,1778947839000,-500.0,0.00013698,2]
[422438091,1778947839000,-500.0,0.00013698,2]
[422438090,1778947839000,-500.0,0.00013698,2]
[422438086,1778947839000,-500.0,0.00013698,2]
[422438084,1778947839000,-500.0,0.00013698,2]
[422438085,1778947839000,-500.0,0.00013698,2]
[422438083,1778947839000,-500.0,0.00013698,2]
[422438080,1778947839000,-500.0,0.00013698,2]
[422438081,1778947839000,-500.0,0.00013698,2]
[422438077,1778947839000,-150.0,0.00013692,2]
[422438087,1778947839000,-500.0,0.00013698,2]
[422438082,1778947839000,-500.0,0.00013698,2]
[422438088,1778947839000,-500.0,0.00013698,2]
[422438104,1778947839000,-500.0,0.00013698,2]
[422438094,1778947839000,-621.13564933,0.00013698,2]
[422438106,1778947839000,-500.0,0.00013698,2]
[422438097,1778947839000,-500.0,0.00013698,2]
[422438103,1778947839000,-212.0522951,0.00013698,2]
[422438101,1778947839000,-582.7820392,0.00013698,2]
[422438099,1778947839000,-500.0,0.00013698,2]
[422438100,1778947839000,-500.0,0.00013698,2]
[422438095,1778947839000,-500.0,0.00013698,2]
[422438102,1778947839000,-500.0,0.00013698,2]
[422438105,1778947839000,-504.92605126,0.00013698,2]
[422438098,1778947839000,-500.0,0.00013698,2]
[422438096,1778947839000,-500.0,0.00013698,2]
[422438079,1778947839000,-500.0,0.00013698,2]
[422438093,1778947839000,-500.0,0.00013698,2]
[422438078,1778947839000,-150.0,0.00013698,2]
[422438045,1778947839000,-150.13985587,0.00013488,2]
[422438076,1778947839000,-150.0,0.00013691,2]
[422438107,1778947839000,-500.0,0.00013698,2]
[422438046,1778947839000,-150.0,0.00013488,2]
[422438051,1778947839000,-150.0,0.00013543,2]
[422438048,1778947839000,-1000.0,0.000135,2]
[422438054,1778947839000,-400.691989,0.00013552,2]
[422438047,1778947839000,-150.0,0.00013488,2]
[422438053,1778947839000,-150.0,0.0001355,2]
[422438049,1778947839000,-150.0,0.00013506,2]
[422438050,1778947839000,-150.0,0.00013525,2]
[422438052,1778947839000,-150.0,0.0001355,2]
[422438055,1778947839000,-150.0,0.00013556,2]
[422438056,1778947839000,-1456.190345,0.00013559,2]
[422438058,1778947839000,-150.0,0.00013571,2]
[422438057,1778947839000,-150.0,0.00013562,2]
[422438060,1778947839000,-150.0,0.00013595,2]
[422438063,1778947839000,-150.0,0.00013613,2]
[422438066,1778947839000,-150.0,0.00013636,2]
[422438062,1778947839000,-150.0,0.00013613,2]
[422438067,1778947839000,-14317.05276788,0.00013646,2]
[422438059,1778947839000,-150.0,0.0001358,2]
[422438065,1778947839000,-150.0,0.00013624,2]
[422438061,1778947839000,-150.0,0.00013599,2]
[422438069,1778947839000,-150.0,0.00013654,2]
[422438068,1778947839000,-150.0,0.00013654,2]
[422438071,1778947839000,-3972.25058818,0.00013667,2]
[422438070,1778947839000,-150.0,0.00013654,2]
[422438072,1778947839000,-150.0,0.00013673,2]
[422438073,1778947839000,-150.0,0.00013675,2]
[422438074,1778947839000,-150.0,0.00013675,2]
[422438075,1778947839000,-500.0,0.0001369,2]
[422438108,1778947839000,-529.54071265,0.00013698,2]
[422438064,1778947839000,-150.0,0.00013617,2]
[422438111,1778947839000,-500.0,0.00013698,2]
[422438141,1778947839000,-150.0,0.00013737,2]
[422438146,1778947839000,-150.0,0.00013784,2]
[422438158,1778947839000,-150.0,0.00013862,2]
[422438148,1778947839000,-150.0,0.000138,2]
[422438149,1778947839000,-150.0,0.00013802,2]
[422438147,1778947839000,-150.0,0.000138,2]
[422438150,1778947839000,-150.0,0.00013809,2]
[422438151,1778947839000,-150.0,0.00013821,2]
[422438154,1778947839000,-150.0,0.00013828,2]
[422438153,1778947839000,-150.0,0.00013821,2]
[422438157,1778947839000,-150.0,0.00013858,2]
[422438156,1778947839000,-150.0,0.00013839,2]
[422438152,1778947839000,-150.0,0.00013821,2]
[422438174,1778947839000,-150.0,0.00013969,2]
[422438155,1778947839000,-340.80268506,0.00013835,2]
[422438159,1778947839000,-150.0,0.00013862,2]
[422438160,1778947839000,-150.0,0.00013876,2]
[422438161,1778947839000,-150.0,0.00013895,2]
[422438162,1778947839000,-150.0,0.00013896,2]
[422438171,1778947839000,-150.0,0.0001395,2]
[422438163,1778947839000,-150.0,0.00013904,2]
[422438164,1778947839000,-150.0,0.00013913,2]
[422438172,1778947839000,-500.0,0.00013964,2]
[422438166,1778947839000,-150.0,0.00013925,2]
[422438165,1778947839000,-150.0,0.00013916,2]
[422438173,1778947839000,-150.0,0.00013965,2]
[422438167,1778947839000,-150.0,0.00013925,2]
[422438168,1778947839000,-150.0,0.00013932,2]
[422438109,1778947839000,-507.39599137,0.00013698,2]
[422438139,1778947839000,-150.0,0.00013737,2]
[422438138,1778947839000,-150.0,0.00013737,2]
[422438169,1778947839000,-15946.7345584,0.00013941,2]
[422438142,1778947839000,-150.0,0.00013747,2]
[422438140,1778947839000,-150.0,0.00013737,2]
[422438119,1778947839000,-500.0,0.00013698,2]
[422438110,1778947839000,-500.0,0.00013698,2]
[422438112,1778947839000,-500.0,0.00013698,2]
[422438116,1778947839000,-500.0,0.00013698,2]
[422438113,1778947839000,-506.02433073,0.00013698,2]
[422438114,1778947839000,-500.0,0.00013698,2]
[422438115,1778947839000,-500.0,0.00013698,2]
[422438117,1778947839000,-500.0,0.00013698,2]
[422438120,1778947839000,-500.0,0.00013698,2]
[422438121,1778947839000,-500.0,0.00013698,2]
[422438123,1778947839000,-500.0,0.00013698,2]
[422438122,1778947839000,-500.0,0.00013698,2]
[422438132,1778947839000,-15946.7345584,0.00013701,2]
[422438125,1778947839000,-500.0,0.00013698,2]
[422438118,1778947839000,-500.0,0.00013698,2]
[422438127,1778947839000,-500.0,0.00013698,2]
[422438126,1778947839000,-500.0,0.00013698,2]
[422438143,1778947839000,-150.0,0.0001376,2]
[422438136,1778947839000,-197.351694,0.00013716,2]
[422438144,1778947839000,-150.0,0.00013765,2]
[422438135,1778947839000,-352.333866,0.00013716,2]
[422438145,1778947839000,-647.19,0.00013768,2]
[422438137,1778947839000,-150.0,0.00013728,2]
[422438133,1778947839000,-150.0,0.00013702,2]
[422438131,1778947839000,-847.98,0.000137,2]
[422438130,1778947839000,-200.0,0.00013699,2]
[422438129,1778947839000,-500.0,0.00013698,2]
[422438128,1778947839000,-500.0,0.00013698,2]
[422438134,1778947839000,-150.0,0.0001371,2]
[422438124,1778947839000,-500.0,0.00013698,2]
[422438204,1778947840000,-150.0,0.00014154,2]
[422438212,1778947840000,-150.0,0.00014228,2]
[422438211,1778947840000,-150.0,0.00014209,2]
[422438209,1778947840000,-15946.7345584,0.00014181,2]
[422438208,1778947840000,-150.0,0.00014175,2]
[422438203,1778947840000,-150.0,0.00014154,2]
[422438207,1778947840000,-150.0,0.00014175,2]
[422438206,1778947840000,-150.0,0.00014172,2]
[422438201,1778947840000,-150.0,0.00014135,2]
[422438205,1778947840000,-150.0,0.00014169,2]
[422438217,1778947840000,-150.0,0.00014237,2]
[422438218,1778947840000,-150.0,0.00014237,2]
[422438216,1778947840000,-150.0,0.00014237,2]
[422438213,1778947840000,-150.0,0.00014237,2]
[422438214,1778947840000,-150.0,0.00014237,2]
[422438215,1778947840000,-150.0,0.00014237,2]
[422438220,1778947840000,-150.0,0.00014246,2]
[422438219,1778947840000,-150.0,0.00014237,2]
[422438221,1778947840000,-587.0,0.00014258,2]
[422438222,1778947840000,-150.0,0.00014265,2]
[422438223,1778947840000,-150.0,0.00014283,2]
[422438202,1778947840000,-150.0,0.00014154,2]
[422438225,1778947840000,-150.0,0.00014299,2]
[422438210,1778947840000,-150.0,0.00014191,2]
[422438200,1778947840000,-150.0,0.0001413,2]
[422438180,1778947840000,-150.0,0.00013987,2]
[422438198,1778947840000,-150.0,0.00014112,2]
[422438224,1778947840000,-3972.25058818,0.00014283,2]
[422438175,1778947840000,-3972.25058818,0.00013975,2]
[422438184,1778947840000,-150.0,0.00014006,2]
[422438176,1778947840000,-150.0,0.00013987,2]
[422438178,1778947840000,-150.0,0.00013987,2]
[422438185,1778947840000,-150.0,0.00014023,2]
[422438179,1778947840000,-150.0,0.00013987,2]
[422438177,1778947840000,-150.0,0.00013987,2]
[422438181,1778947840000,-150.0,0.00013987,2]
[422438183,1778947840000,-1500.0,0.00014,2]
[422438182,1778947840000,-250.0,0.00014,2]
[422438186,1778947840000,-150.0,0.00014024,2]
[422438187,1778947840000,-150.0,0.00014033,2]
[422438188,1778947840000,-150.0,0.00014043,2]
[422438189,1778947840000,-150.0,0.0001405,2]
[422438191,1778947840000,-150.0,0.00014061,2]
[422438193,1778947840000,-433.0,0.00014075,2]
[422438192,1778947840000,-150.0,0.0001407,2]
[422438195,1778947840000,-150.0,0.00014098,2]
[422438194,1778947840000,-150.0,0.0001408,2]
[422438190,1778947840000,-150.0,0.0001405,2]
[422438196,1778947840000,-150.0,0.00014101,2]
[422438197,1778947840000,-150.0,0.00014112,2]
[422438199,1778947840000,-150.0,0.00014117,2]
[422438228,1778947840000,-150.0,0.00014302,2]
[422438229,1778947840000,-150.0,0.00014305,2]
[422438226,1778947840000,-150.0,0.00014299,2]
[422438257,1778947840000,-150.0,0.00014505,2]
[422438258,1778947840000,-150.0,0.00014509,2]
[422438263,1778947840000,-150.0,0.00014549,2]
[422438265,1778947840000,-150.0,0.00014561,2]
[422438262,1778947840000,-150.0,0.00014549,2]
[422438259,1778947840000,-150.0,0.00014524,2]
[422438261,1778947840000,-150.0,0.00014542,2]
[422438264,1778947840000,-150.0,0.00014558,2]
[422438266,1778947840000,-150.0,0.0001457,2]
[422438268,1778947840000,-150.0,0.00014579,2]
[422438270,1778947840000,-150.0,0.00014598,2]
[422438280,1778947840000,-500.0,0.00014624,2]
[422438278,1778947840000,-500.0,0.00014624,2]
[422438269,1778947840000,-3972.25058818,0.00014592,2]
[422438271,1778947840000,-150.0,0.00014612,2]
[422438273,1778947840000,-150.0,0.00014616,2]
[422438272,1778947840000,-150.0,0.00014612,2]
[422438276,1778947840000,-613.50899683,0.00014624,2]
[422438277,1778947840000,-500.0,0.00014624,2]
[422438279,1778947840000,-500.0,0.00014624,2]
[422438274,1778947840000,-500.0,0.00014624,2]
[422438275,1778947840000,-500.0,0.00014624,2]
[422438232,1778947840000,-150.0,0.0001432,2]
[422438255,1778947840000,-150.0,0.00014487,2]
[422438256,1778947840000,-150.0,0.00014487,2]
[422438267,1778947840000,-150.0,0.00014578,2]
[422438251,1778947840000,-150.0,0.00014487,2]
[422438230,1778947840000,-150.0,0.0001432,2]
[422438254,1778947840000,-150.0,0.00014487,2]
[422438231,1778947840000,-150.0,0.0001432,2]
[422438227,1778947840000,-2351.0,0.000143,2]
[422438233,1778947840000,-150.0,0.00014339,2]
[422438243,1778947840000,-15946.7345584,0.0001442,2]
[422438235,1778947840000,-150.0,0.00014357,2]
[422438234,1778947840000,-150.0,0.00014344,2]
[422438244,1778947840000,-150.0,0.00014424,2]
[422438236,1778947840000,-150.0,0.00014362,2]
[422438241,1778947840000,-150.0,0.00014404,2]
[422438238,1778947840000,-150.0,0.00014373,2]
[422438237,1778947840000,-150.0,0.00014362,2]
[422438240,1778947840000,-150.0,0.00014394,2]
[422438247,1778947840000,-150.0,0.00014441,2]
[422438252,1778947840000,-150.0,0.00014487,2]
[422438250,1778947840000,-150.0,0.00014468,2]
[422438249,1778947840000,-150.0,0.00014451,2]
[422438248,1778947840000,-150.0,0.0001445,2]
[422438253,1778947840000,-150.0,0.00014487,2]
[422438245,1778947840000,-150.0,0.00014424,2]
[422438242,1778947840000,-150.0,0.00014413,2]
[422438239,1778947840000,-150.0,0.00014376,2]
[422438246,1778947840000,-150.0,0.00014431,2]
[422438328,1778947841000,-150.0,0.00014924,2]
[422438315,1778947841000,-2000.0,0.00014871,2]
[422438305,1778947841000,-150.0,0.00014799,2]
[422438314,1778947841000,-150.0,0.00014861,2]
[422438309,1778947841000,-150.0,0.0001482,2]
[422438308,1778947841000,-150.0,0.0001482,2]
[422438311,1778947841000,-150.0,0.0001485,2]
[422438317,1778947841000,-150.0,0.00014879,2]
[422438325,1778947841000,-150.0,0.00014912,2]
[422438326,1778947841000,-150.0,0.00014918,2]
[422438318,1778947841000,-150.0,0.00014894,2]
[422438324,1778947841000,-150.0,0.00014903,2]
[422438337,1778947841000,-164.93242148,0.00014986,2]
[422438320,1778947841000,-3461.81793877,0.000149,3]
[422438327,1778947841000,-150.0,0.00014924,2]
[422438323,1778947841000,-3972.25058818,0.000149,2]
[422438319,1778947841000,-53586.41665203,0.000149,2]
[422438321,1778947841000,-340.80268506,0.000149,2]
[422438330,1778947841000,-150.0,0.00014931,2]
[422438329,1778947841000,-186.23,0.00014929,2]
[422438331,1778947841000,-217.27,0.00014949,2]
[422438334,1778947841000,-601.50431683,0.0001497,2]
[422438333,1778947841000,-150.0,0.00014968,2]
[422438335,1778947841000,-400.0,0.0001497,2]
[422438307,1778947841000,-150.0,0.0001482,2]
[422438322,1778947841000,-15946.7345584,0.000149,2]
[422438306,1778947841000,-150.0,0.00014801,2]
[422438282,1778947841000,-150.0,0.00014646,2]
[422438310,1778947841000,-150.0,0.00014838,2]
[422438336,1778947841000,-217.27,0.00014979,2]
[422438281,1778947841000,-150.0,0.00014635,2]
[422438283,1778947841000,-150.0,0.00014653,2]
[422438284,1778947841000,-150.0,0.00014653,2]
[422438289,1778947841000,-150.0,0.00014674,2]
[422438287,1778947841000,-150.0,0.00014665,2]
[422438285,1778947841000,-150.0,0.00014653,2]
[422438286,1778947841000,-15946.7345584,0.0001466,2]
[422438291,1778947841000,-150.0,0.0001469,2]
[422438290,1778947841000,-150.0,0.00014674,2]
[422438292,1778947841000,-150.0,0.00014709,2]
[422438288,1778947841000,-150.0,0.00014672,2]
[422438312,1778947841000,-150.0,0.00014857,2]
[422438295,1778947841000,-150.0,0.00014737,2]
[422438293,1778947841000,-150.0,0.00014714,2]
[422438297,1778947841000,-150.0,0.00014737,2]
[422438304,1778947841000,-150.0,0.00014799,2]
[422438296,1778947841000,-150.0,0.00014737,2]
[422438298,1778947841000,-150.0,0.00014737,2]
[422438301,1778947841000,-150.0,0.00014772,2]
[422438299,1778947841000,-150.0,0.00014746,2]
[422438302,1778947841000,-150.0,0.00014782,2]
[422438300,1778947841000,-150.0,0.00014764,2]
[422438303,1778947841000,-150.0,0.00014783,2]
[422438313,1778947841000,-150.0,0.00014861,2]
[422438316,1778947841000,-150.0,0.00014875,2]
[422438294,1778947841000,-150.0,0.00014727,2]
[422438332,1778947841000,-150.0,0.00014949,2]
[422438395,1778947841000,-500.0,0.00015,2]
[422438339,1778947841000,-166.93728157,0.00014986,2]
[422438370,1778947841000,-151.0,0.00015,2]
[422438371,1778947841000,-151.0,0.00015,2]
[422438372,1778947841000,-151.0,0.00015,2]
[422438373,1778947841000,-151.0,0.00015,2]
[422438375,1778947841000,-500.0,0.00015,2]
[422438374,1778947841000,-500.0,0.00015,2]
[422438385,1778947841000,-500.0,0.00015,2]
[422438384,1778947841000,-500.0,0.00015,2]
[422438378,1778947841000,-500.0,0.00015,2]
[422438379,1778947841000,-500.0,0.00015,2]
[422438377,1778947841000,-500.0,0.00015,2]
[422438382,1778947841000,-500.0,0.00015,2]
[422438369,1778947841000,-151.0,0.00015,2]
[422438376,1778947841000,-500.0,0.00015,2]
[422438383,1778947841000,-500.0,0.00015,2]
[422438387,1778947841000,-500.0,0.00015,2]
[422438386,1778947841000,-500.0,0.00015,2]
[422438396,1778947841000,-500.0,0.00015,2]
[422438388,1778947841000,-500.0,0.00015,2]
[422438389,1778947841000,-500.0,0.00015,2]
[422438391,1778947841000,-500.0,0.00015,2]